Cogmind - Beta 14 @@@ ROGUE MODE // 2025.01.01 @ 21:58:06 Player: VraethrDalkr Result: Destroyed by B-75 Beast with Magnetic Acceleration Cannon Performance ------------- Evolutions (4) 2000 Regions Visited (9) 1800 Robots Destroyed (50) 250 Value Destroyed (1722) 1722 Prototype IDs (7) 140 Alien Tech Used (0) 0 Bonus (172) 172 TOTAL SCORE: 6084 Bonus ------- High Alert Combat Kills 12 Follower Combat Kills 174 Friendly Fire -14 Cogmind --------- Core Integrity 0/850 Matter 300/300 Energy 100/100 System Corruption 2% Temperature Cool (0) Movement Core (300) Ox5 Location -6/Extension Parts ------- > --- POWER (2) -------- (None) > --- PROPULSION (4) --- (None) > --- UTILITY (7) ------ Medium Storage Unit Visual Processing Unit Target Analyzer Field Recycling Unit > --- WEAPON (2) ------- (None) > --- INVENTORY (10) --- Compact Wheel Heart of Steel Molecular Deconstructor Peak State ------------ > --- POWER ------------ Ion Engine Heavy Deuterium Engine > --- PROPULSION ------- Armored Leg Armored Leg Armored Leg Armored Leg > --- UTILITY ---------- Improved Cooling System Medium Storage Unit Visual Processing Unit Advanced Sensor Array Heart of Steel > --- WEAPON ----------- Molecular Deconstructor > --- INVENTORY -------- Heavy Deuterium Engine Heavy Deuterium Engine Armored Leg Compact Wheel Compact Wheel Improved Heat Sink Proton Cannon Heavy Ion Cannon Magnetic Acceleration Cannon [Rating: 83] Favorites ----------- Power Ion Engine Engine Ion Engine Power Core Light Fission Core Propulsion Compact Wheel Treads Medium Treads Leg Armored Leg Wheel Compact Wheel Utility Visual Processing Unit Device Improved Terrain Scanner Storage Small Storage Unit Processor Visual Processing Unit Protection Light Armor Plating Weapon Minigun Energy Gun Field Laser Energy Cannon Proton Cannon Ballistic Gun Minigun Ballistic Cannon Magnetic Acceleration Cannon Special Weapon Molecular Deconstructor Build | -11 -10 -9 -9 -8 -7 -7 -7 -6 -6 ------- Run | Yrd Mat Mat Sto Mat Fac Low Low Fac Ext Slots Evolved 8 | . . 2 . 2 2 . . 2 . Power 1 | . . . . . 1 . . . . Propulsion 2 | . . 1 . 1 . . . . . Utility 5 | . . 1 . 1 1 . . 2 . Weapon . | . . . . . . . . . . Parts Attached 97 | 12 8 3 8 9 6 3 . 42 6 Power 16 | 1 2 . 2 . 2 . . 6 3 Engine 13 | 1 2 . 2 . 2 . . 5 1 Core 3 | . . . . . . . . 1 2 Reactor . | . . . . . . . . . . Propulsion 36 | 5 5 1 3 2 1 1 . 16 2 Treads 1 | . . . . . . . . 1 . Leg 6 | . . . . . . . . 6 . Wheel 29 | 5 5 1 3 2 1 1 . 9 2 Hover . | . . . . . . . . . . Flight . | . . . . . . . . . . Utility 25 | 3 . 1 1 5 2 . . 13 . Device 18 | 2 . 1 . 3 2 . . 10 . Storage 4 | 1 . . . 1 . . . 2 . Processor 2 | . . . . 1 . . . 1 . Hackware . | . . . . . . . . . . Protection 1 | . . . 1 . . . . . . Artifact . | . . . . . . . . . . Weapon 20 | 3 1 1 2 2 1 2 . 7 1 Energy Gun 5 | 1 1 . 1 1 . 1 . . . Energy Cannon 5 | . . . . . . . . 4 1 Ballistic Gun 7 | 2 . 1 1 1 1 . . 1 . Ballistic Cannon 2 | . . . . . . . . 2 . Launcher . | . . . . . . . . . . Special Weapon 1 | . . . . . . 1 . . . Impact Weapon . | . . . . . . . . . . Slashing Weapon . | . . . . . . . . . . Piercing Weapon . | . . . . . . . . . . Special Melee Weapon . | . . . . . . . . . . Unidentified Prototypes 3 | . . . . . 1 1 . 1 . Parts Lost 37 | . 3 1 3 . . 3 . 12 15 Power 8 | . . . . . . . . 4 4 Propulsion 16 | . 3 . 2 . . 3 . 2 6 Utility 6 | . . . 1 . . . . 2 3 Weapon 7 | . . 1 . . . . . 4 2 Highest Loss Streak 15 | . 2 1 2 . . 2 . 7 15 To Critical Strikes . | . . . . . . . . . . Average Slot Usage (%) 90 | . 99 100 98 96 99 97 76 79 87 Engine 13 | . 14 11 11 9 15 15 15 11 10 Leg 3 | . . . . . . . . 14 . Wheel 21 | . 27 33 33 32 29 28 15 6 23 Device 20 | . 14 22 16 18 23 23 23 18 21 Storage 7 | . 14 11 11 9 7 7 7 6 6 Processor 6 | . . . . 8 7 7 7 8 13 Energy Gun 4 | . 14 11 11 9 7 6 . . . Ballistic Gun 5 | . 14 11 11 9 7 6 . 1 4 Special Weapon 1 | . . . . . . . 7 3 . Peak Build Rating 83 | 9 9 11 13 19 30 42 42 83 45 Average Rating 37 | 7 8 10 11 16 26 31 42 69 38 On Entrance 21 | . 9 9 11 11 19 30 42 42 45 Naked Turns . | . . . . . . . . . . Heaviest Build 60 | 15 15 15 20 20 30 30 30 60 50 Greatest Support 64 | 26 26 30 36 52 52 58 32 64 64 Greatest Overweight (x) 6 | 1 1 . . . . . . 3 6 Average Overweight (x) . | . . . . . . . . . . Largest Inventory Capacity 10 | 8 8 8 8 8 8 8 8 10 10 Average Capacity 8 | 7 8 8 8 8 8 8 8 9 10 Most Carried 10 | 8 8 7 8 8 8 8 8 10 10 Average Carried 7 | 4 7 5 7 7 7 7 8 8 8 Final Capacity 10 | 8 8 8 8 8 8 8 8 10 10 Final Carried 10 | 8 8 7 7 8 8 8 8 10 6 Class Distribution -------------------- 48% | Scavenger-Skirmisher 25% | Mutant 24% | Scavenger-Mutant Dominant Class ---------------- Mutant | -10/Materials Scavenger-Mutant | -9/Materials Scavenger-Mutant | -9/Storage Scavenger-Mutant | -8/Materials Scavenger-Skirmisher | -7/Factory Scavenger-Skirmisher | -7/Lower Caves Scavenger-Skirmisher | -7/Lower Caves Mutant | -6/Factory Scavenger-Mutant | -6/Extension Resources | -11 -10 -9 -9 -8 -7 -7 -7 -6 -6 ----------- Run | Yrd Mat Mat Sto Mat Fac Low Low Fac Ext Matter Collected 1950 | 353 110 58 129 83 49 211 15 850 92 Remotely 247 | 75 . . . . . . . 110 62 Salvage Created 2229 | 226 238 58 198 80 49 175 . 1063 142 Parts 107 | 13 13 3 9 4 3 5 . 52 5 Haulers Intercepted 1 | . . . 1 . . . . . . Recyclers Shooed 5 | . . . 2 . . . . 3 . Parts Field Recycled . | . . . . . . . . . . Retrieved Matter . | . . . . . . . . . . Parts Self-Destructed 16 | . . . . . . 16 . . . Prevented . | . . . . . . . . . . Kills | -11 -10 -9 -9 -8 -7 -7 -7 -6 -6 ------- Run | Yrd Mat Mat Sto Mat Fac Low Low Fac Ext Combat Hostiles Destroyed 34 | . 7 1 1 . 1 3 . 19 2 Guns 16 | . 7 1 1 . 1 3 . 2 1 Cannons 11 | . . . . . . . . 10 1 AOE 2 | . . . . . . . . 2 . Classes Destroyed 13 | 3 2 1 1 . 1 . . 4 1 Worker 4 | 1 1 . 2 . . . . . . Tunneler 4 | 4 . . . . . . . . . Hauler 1 | . . . 1 . . . . . . Recycler 5 | 1 . . 1 1 . . . 2 . Watcher 2 | . . . . . . . . 1 1 Swarmer 7 | . 3 . . . . 2 . 2 . Grunt 15 | . 4 . 1 . . . . 10 . Brawler 1 | . . . . . . . . 1 . Duelist 2 | . . . . . . . . . 2 Protector 1 | . . . . . . . . 1 . Sentry 3 | . . 1 . . . 1 . 1 . Hunter 2 | . . . . . . . . 2 . Programmer 3 | . . . . . 1 . . 2 . Packrat 1 | . . . . . . 1 . . . Best Kill Streak 7 | 3 2 1 2 1 1 3 . 7 3 Combat Bots Only 7 | . 2 1 1 . 1 3 . 7 2 Max Kills in Single Turn 2 | 1 1 1 1 1 1 1 . 2 2 Gunslinging . | . . . . . . . . . . Exploded 2 | . . . . . . . . 2 . Melee . | . . . . . . . . . . Uniques/NPCs Destroyed . | . . . . . . . . . . Combat | -11 -10 -9 -9 -8 -7 -7 -7 -6 -6 -------- Run | Yrd Mat Mat Sto Mat Fac Low Low Fac Ext Hostile Shots Fired 553 | . 35 13 63 2 17 39 . 287 97 Missed 171 | . 7 5 20 1 2 14 . 99 23 Damage Taken 6163 | . 327 121 470 13 224 267 . 3365 1376 Core 1058 | . 45 14 77 . . 61 . 435 426 Absorbed by Shields . | . . . . . . . . . . Regen/Repaired (Parts) 159 | . . . . . 24 . . 135 . Core Remaining (%) 90 | 100 82 . 77 100 . . 91 . . Volleys Fired 166 | 11 25 2 18 1 11 12 . 77 9 Largest 2 | 2 2 2 2 2 2 2 . 2 2 Hottest 140 | 70 70 60 60 86 88 88 . 140 98 Shots Fired 290 | 22 50 4 36 2 22 25 . 113 16 Gun 195 | 22 50 4 36 2 22 25 . 25 9 Cannon 75 | . . . . . . . . 68 7 Launcher . | . . . . . . . . . . Special 20 | . . . . . . . . 20 . Kinetic 139 | 11 25 2 18 1 11 12 . 50 9 Thermal 109 | 11 25 2 18 1 11 13 . 28 . Explosive . | . . . . . . . . . . Electromagnetic 22 | . . . . . . . . 15 7 Robot Hit Streak 20 | 6 17 20 6 1 3 7 . 13 9 Robot Miss Streak 4 | 2 1 . 2 1 2 3 . 4 1 Penetration Max . | . . . . . . . . . . Secondary Targets 1 | . 1 . . . . . . . . Max Gunslinging Chain 1 | . 1 . . . . . . . . Shots Hit Robots 190 | 14 39 3 17 1 13 14 . 76 13 Core Hits 86 | 7 15 2 10 1 2 8 . 33 8 Critical Kills 1 | . . . . . . . . 1 . Critical Parts Destroyed 2 | . . . . . 2 . . . . Critical Strikes 10 | . 1 . . . 3 2 . 4 . Burn 4 | . 1 . . . 1 2 . . . Destroy 3 | . . . . . 2 . . 1 . Blast 2 | . . . . . . . . 2 . Corrupt 1 | . . . . . . . . 1 . Melee Attacks . | . . . . . . . . . . Impact . | . . . . . . . . . . Slashing . | . . . . . . . . . . Piercing . | . . . . . . . . . . Sneak Attacks . | . . . . . . . . . . Combat Hostiles . | . . . . . . . . . . Follow-up Attacks . | . . . . . . . . . . Damage Inflicted 3803 | 188 482 33 202 15 259 239 . 1930 455 Guns 1889 | 188 482 33 202 15 259 239 . 328 143 Cannons 1626 | . . . . . . . . 1410 216 Explosions 258 | . . . . . . . . 164 94 Melee . | . . . . . . . . . . Ramming 30 | . . . . . . . . 28 2 Kinetic 1635 | 113 231 10 123 15 138 87 . 775 143 Thermal 1480 | 75 251 23 79 . 121 152 . 685 94 Explosive . | . . . . . . . . . . Electromagnetic 658 | . . . . . . . . 442 216 Impact . | . . . . . . . . . . Slashing . | . . . . . . . . . . Piercing . | . . . . . . . . . . Highest Corruption 2 | . . . . 1 2 2 2 2 2 Average Corruption 1 | . . . . 1 1 2 2 2 2 Corruption Purged . | . . . . . . . . . . Corruption Blocked . | . . . . . . . . . . Effects 41 | . . . . . 2 19 9 7 4 Message Errors 12 | . . . . . 1 5 2 2 2 Matter Fused 14 | . . . . . . 10 2 2 . Heat Flow Errors 5 | . . . . . 1 1 . 2 1 Energy Discharges 3 | . . . . . . . 3 . . Data Loss (minor) 5 | . . . . . . 2 2 . 1 Data Loss (major) 1 | . . . . . . . . 1 . Misfires 1 | . . . . . . 1 . . . Overload Shots . | . . . . . . . . . . Overflow Damage 16 | . . . . . . . . . 16 Projectiles . | . . . . . . . . . . Explosions 16 | . . . . . . . . . 16 Melee . | . . . . . . . . . . Knockbacks 10 | . . . . . . . . 10 . Impact 1 | . . . . . . . . 1 . Kinetic 9 | . . . . . . . . 9 . Secondary . | . . . . . . . . . . Self-Inflicted Damage 40 | . . . . . . . . 39 1 Shots 1 | . . . . . . . . 1 . Rammed 1 | . . . . . . . . . 1 Targets Rammed 3 | . . . . . . . . 2 1 Kicked 2 | . . . . . . . . 2 . Crushed . | . . . . . . . . . . Highest Temperature 293 | 38 195 6 15 . 199 176 . 173 293 Average Temperature 58 | 12 71 4 10 . 40 30 . 75 99 Received Heat Transfer 2002 | . 171 33 129 . . 99 . 1114 456 Siege Activations . | . . . . . . . . . . Robots Corrupted 1 | . . . . . . . . 1 . Combat Hostiles 1 | . . . . . . . . 1 . Parts Fried 5 | . . . . . . . . 4 1 Impact Corruptions . | . . . . . . . . . . Robots Melted . | . . . . . . . . . . Combat Hostiles . | . . . . . . . . . . Parts Melted 2 | . 1 . . . . 1 . . . Heat Transferred 2923 | 222 814 50 175 . 296 481 . 785 100 Parts Sabotaged . | . . . . . . . . . . Parts Stolen . | . . . . . . . . . . Parts Stripped . | . . . . . . . . . . Power Chain Reactions 2 | . . . . . . . . 1 1 Alert | -11 -10 -9 -9 -8 -7 -7 -7 -6 -6 ------- Run | Yrd Mat Mat Sto Mat Fac Low Low Fac Ext Peak Influence 411 | 30 269 163 350 207 181 . . 411 203 Initial 148 | . 19 113 68 147 93 . . . 148 Average 161 | 13 163 132 260 173 109 . . 168 146 Maximum Alert Level 2 | . 1 . 1 1 . . . 2 1 Low Security (%) 68 | 100 55 100 14 95 100 . . 59 99 Level 1 26 | . 44 . 85 4 . . . 27 . Level 2 5 | . . . . . . . . 12 . Level 3 . | . . . . . . . . . . Level 4 . | . . . . . . . . . . Level 5 . | . . . . . . . . . . High Security . | . . . . . . . . . . Max Security . | . . . . . . . . . . Squads Dispatched 12 | . 1 . 4 . 1 . . 6 . Investigation 2 | . . . . . . . . 2 . Extermination 3 | . . . . . 1 . . 2 . Reinforcement 3 | . 1 . 1 . . . . 1 . Assault 1 | . . . . . . . . 1 . Garrison 3 | . . . 3 . . . . . . Intercept . | . . . . . . . . . . Searches Triggered . | . . . . . . . . . . Construction Impeded 1 | . . . . . . . . 1 . Haulers Reinforced . | . . . . . . . . . . Active Scanning Responses . | . . . . . . . . . . Cargo Convoy Interrupts . | . . . . . . . . . . Stealth | -11 -10 -9 -9 -8 -7 -7 -7 -6 -6 --------- Run | Yrd Mat Mat Sto Mat Fac Low Low Fac Ext Distress Signals 6 | . . 2 2 . . . . 1 1 Communications Jammed . | . . . . . . . . . . Distress Signals . | . . . . . . . . . . Times Spotted 92 | . 15 6 20 3 3 7 . 28 10 Peak Tracking Total 10 | . 5 8 10 3 1 3 . 10 6 Tactical Retreats 10 | . 2 . 4 1 . 2 . 1 . Traps | -11 -10 -9 -9 -8 -7 -7 -7 -6 -6 ------- Run | Yrd Mat Mat Sto Mat Fac Low Low Fac Ext Traps Triggered 1 | . . . . 1 . . . . . Indirectly . | . . . . . . . . . . Trap Hack Attempts . | . . . . . . . . . . Triggered . | . . . . . . . . . . Disarmed . | . . . . . . . . . . Reprogrammed . | . . . . . . . . . . Reused . | . . . . . . . . . . Traps Extracted . | . . . . . . . . . . Installed . | . . . . . . . . . . Triggered . | . . . . . . . . . . Machines | -11 -10 -9 -9 -8 -7 -7 -7 -6 -6 ---------- Run | Yrd Mat Mat Sto Mat Fac Low Low Fac Ext Machines Disabled 2 | . . . . . . 1 . 1 . Max in Single Turn 1 | . . . . . . 1 . 1 . Garrison Access 1 | . . . . . . . . 1 . Machines Repaired . | . . . . . . . . . . Machines Dismantled . | . . . . . . . . . . Machines Sabotaged . | . . . . . . . . . . Overloaded Fab Kills . | . . . . . . . . . . Hacking | -11 -10 -9 -9 -8 -7 -7 -7 -6 -6 --------- Run | Yrd Mat Mat Sto Mat Fac Low Low Fac Ext Machines Accessed 18 | . 3 . 2 4 3 2 . 4 . Terminals 11 | . 3 . 2 4 1 . . 1 . Fabricators . | . . . . . . . . . . Repair Stations 2 | . . . . . 1 . . 1 . Recycling Units 2 | . . . . . 1 . . 1 . Scanalyzers . | . . . . . . . . . . Garrison Access 1 | . . . . . . . . 1 . Total Hacks 45 | . 6 . 4 9 6 2 . 18 . Successful 26 | . 3 . 2 2 5 2 . 12 . Failed 19 | . 3 . 2 7 1 . . 6 . Catastrophic 5 | . 2 . 1 1 . . . 1 . Database Lockouts . | . . . . . . . . . . Manual 6 | . 2 . 2 . . 2 . . . Terminals 24 | . 6 . 4 9 2 . . 3 . Fabricators . | . . . . . . . . . . Repair Stations 14 | . . . . . 2 . . 12 . Recycling Units 3 | . . . . . 2 . . 1 . Scanalyzers . | . . . . . . . . . . Garrison Access 2 | . . . . . . . . 2 . Terminal Hacks 13 | . 3 . 2 2 2 2 . 2 . Record 1 | . . . . . 1 . . . . Robot Analysis 1 | . . . . . . . . 1 . Prototype ID Bank 2 | . 1 . . 1 . . . . . Open Door 2 | . . . . . . 2 . . . Alert Level 1 | . . . 1 . . . . . . Locate Traps 3 | . 1 . . 1 . . . 1 . Investigation Status 1 | . 1 . . . . . . . . Zone Layout 2 | . . . 1 . 1 . . . . Fabricator Hacks . | . . . . . . . . . . Repair Station Hacks 11 | . . . . . 2 . . 9 . Scan Component 6 | . . . . . 1 . . 5 . Repair 5 | . . . . . 1 . . 4 . Recycling Unit Hacks 2 | . . . . . 1 . . 1 . Report Inventory 1 | . . . . . . . . 1 . Retrieve Matter 1 | . . . . . 1 . . . . Scanalyzer . | . . . . . . . . . . Garrison Access Hacks . | . . . . . . . . . . Unauthorized Hacks . | . . . . . . . . . . Terminals . | . . . . . . . . . . Fabricators . | . . . . . . . . . . Repair Stations . | . . . . . . . . . . Recycling Units . | . . . . . . . . . . Scanalyzers . | . . . . . . . . . . Garrison Access . | . . . . . . . . . . Data Cores Recovered . | . . . . . . . . . . Used . | . . . . . . . . . . Hacking Detections 15 | . 3 . 2 4 2 . . 4 . Full Trace Events 2 | . . . . . . . . 2 . Feedback Events . | . . . . . . . . . . Feedback Blocked . | . . . . . . . . . . Robot Schematics Acquired . | . . . . . . . . . . Robots Built . | . . . . . . . . . . Authchips . | . . . . . . . . . . Time . | . . . . . . . . . . Total Robot Build Rating . | . . . . . . . . . . Part Schematics Acquired . | . . . . . . . . . . Parts Built . | . . . . . . . . . . Authchips . | . . . . . . . . . . Time . | . . . . . . . . . . Total Part Build Rating . | . . . . . . . . . . Parts Repaired 5 | . . . . . 1 . . 4 . Time 209 | . . . . . 26 . . 183 . Parts Recycled . | . . . . . . . . . . Recycled Matter . | . . . . . . . . . . Retrieved Matter . | . . . . . . . . . . Retrieved Components . | . . . . . . . . . . Parts Scanalyzed . | . . . . . . . . . . Part Schematics Acquired . | . . . . . . . . . . Parts Damaged . | . . . . . . . . . . Bothacking | -11 -10 -9 -9 -8 -7 -7 -7 -6 -6 ------------ Run | Yrd Mat Mat Sto Mat Fac Low Low Fac Ext Used RIF Installer . | . . . . . . . . . . Robots Hacked . | . . . . . . . . . . Non-combat . | . . . . . . . . . . Combat . | . . . . . . . . . . Robot Hacks Applied . | . . . . . . . . . . Relay Couplers Released 1 | . . . . . . . . 1 . Machine Destruction 1 | . . . . . . . . 1 . Fabnet Peak Effective % . | . . . . . . . . . . Robots Rewired 1 | . . . 1 . . . . . . Allies Hacked . | . . . . . . . . . . Hacks Repelled . | . . . . . . . . . . Allies | -11 -10 -9 -9 -8 -7 -7 -7 -6 -6 -------- Run | Yrd Mat Mat Sto Mat Fac Low Low Fac Ext Total Allies 10 | . . . 10 . . . . . . Largest Group 10 | . . . 10 . . . . . . Highest-Rated Group 88 | . . . 88 . . . . . . Highest-Rated Ally 16 | . . . 16 . . . . . . Total Orders . | . . . . . . . . . . Ally Attacks 70 | . . . 70 . . . . . . Total Damage 652 | . . . 652 . . . . . . Kills 7 | . . . 7 . . . . . . Allies Corrupted . | . . . . . . . . . . Allies Melted . | . . . . . . . . . . Intel | -11 -10 -9 -9 -8 -7 -7 -7 -6 -6 ------- Run | Yrd Mat Mat Sto Mat Fac Low Low Fac Ext Robot Analysis Total 1 | . . . . . . . . 1 . Derelict Logs Recovered 2 | . . . . . . 1 1 . . Drone Launches . | . . . . . . . . . . Drone Recoveries . | . . . . . . . . . . Exploration | -11 -10 -9 -9 -8 -7 -7 -7 -6 -6 ------------- Run | Yrd Mat Mat Sto Mat Fac Low Low Fac Ext Turns Passed 5133 | 136 314 84 366 287 475 1322 670 1303 176 Spaces Moved 4316 | 94 280 91 301 297 450 1294 667 703 139 Core 9 | 7 . . . . . . . . 2 Treads . | . . . . . . . . . . Legs 418 | . . . . . . . . 418 . Wheels 3889 | 87 280 91 301 297 450 1294 667 285 137 Hover . | . . . . . . . . . . Flight . | . . . . . . . . . . Fastest Speed 50 | 50 80 80 80 86 90 90 100 100 100 Average Speed 95 | 81 80 80 83 88 90 94 100 115 103 Slowest Speed 350 | 100 95 80 90 90 90 100 100 330 350 Overloaded Moves . | . . . . . . . . . . Propulsion Burnouts . | . . . . . . . . . . Robots Hopped . | . . . . . . . . . . Cave-ins Triggered . | . . . . . . . . . . Exploration Rate (%) 35 | 4 45 12 48 31 10 98 67 12 30 Regions Visited 9 Branch Regions 4 Pre-discovered Areas . | . . . . . . . . . . Known Exits Taken . | . . . . . . . . . . Unknown Exits Taken 9 | 1 1 1 1 1 1 1 1 1 . Scrap Searched 6 | . . . . . . 3 3 . . Spaces Dug . | . . . . . . . . . . Terrain Destroyed 12 | . . . . . . . . 9 3 Melee . | . . . . . . . . . . Projectile 9 | . . . . . . . . 9 . AOE 3 | . . . . . . . . . 3 Terrain Rammed . | . . . . . . . . . . Walls Destroyed . | . . . . . . . . . . Machines Disabled . | . . . . . . . . . . Actions | -11 -10 -9 -9 -8 -7 -7 -7 -6 -6 --------- Run | Yrd Mat Mat Sto Mat Fac Low Low Fac Ext Total 5035 | 126 320 97 387 322 504 1378 672 1074 155 Wait 326 | 4 . . 39 1 27 58 4 193 . Move 4307 | 93 279 90 300 296 449 1293 666 702 139 Hop . | . . . . . . . . . . Pick Up 54 | 4 3 2 7 6 5 3 1 23 . Fast Attach 35 | 8 . . 1 2 2 1 . 21 . Attach 30 | . 3 3 2 3 2 1 . 11 5 Detach 7 | 1 . . 1 1 . . . 4 . Swap 32 | 4 5 . 5 4 2 1 . 10 1 Drop 70 | 1 5 . 11 8 6 7 1 31 . Fire 166 | 11 25 2 18 1 11 12 . 77 9 Melee . | . . . . . . . . . . Ram 1 | . . . . . . . . . 1 Kick 2 | . . . . . . . . 2 . Crush . | . . . . . . . . . . Escape Stasis . | . . . . . . . . . . Rewire 5 | . . . 3 . . 2 . . . Trap . | . . . . . . . . . . Miscellaneous . | . . . . . . . . . . Route ------- -11/Scrapyard -10/Materials -9/Materials -9/Storage -8/Materials -7/Factory -7/Lower Caves -7/Lower Caves -6/Factory (discovered 4 exits: Fac / Low x2 / [*Ext]) -6/Extension History --------- Turn | Location | Event 2 | -11/Scrapyard | Met Revision 17 18 | -11/Scrapyard | Discovered new exit (range 16) 137 | -11/Scrapyard | Entered Materials 312 | -10/Materials | Build established: Mutant 424 | -10/Materials | Discovered new exit (range 15) 451 | -10/Materials | Entered another Materials area 451 | -9/Materials | Evolved 2 slots: Propulsion x1, Utility x1 512 | -9/Materials | Discovered new exit (range 16) 535 | -9/Materials | Entered Storage 586 | -9/Storage | Assisted by bots powering up and referring to "LRC-V3" 588 | -9/Storage | Garrison activated, responded to threat 762 | -9/Storage | Lost 10 allies 894 | -9/Storage | Discovered new exit (range 9) 901 | -9/Storage | Entered Materials 901 | -8/Materials | Evolved 2 slots: Propulsion x1, Utility x1 1001 | -8/Materials | Build established: Scavenger-Mutant 1164 | -8/Materials | Discovered new exit (range 17) 1188 | -8/Materials | Entered Factory 1188 | -7/Factory | Evolved 2 slots: Power x1, Utility x1 1241 | -7/Factory | Discovered new exit (range 4) 1477 | -7/Factory | Build established: Scavenger-Skirmisher 1481 | -7/Factory | Repaired Wheel 1663 | -7/Factory | Entered Lower Caves 2041 | -7/Lower Caves | Found Prototype Device 2380 | -7/Lower Caves | Encountered a Warlord checkpoint 2678 | -7/Lower Caves | Discovered new exit (range 11) 2691 | -7/Lower Caves | Learned location of 2 exits from Factory 2814 | -7/Lower Caves | Attracted the attention of an 0b10 checkpoint 2926 | -7/Lower Caves | Acquired the password to a Derelict Tinkerer's latest research 2938 | -7/Lower Caves | Found Prototype Special Weapon 2938 | -7/Lower Caves | Identified Molecular Deconstructor 2985 | -7/Lower Caves | Entered another Lower Caves area 3091 | -7/Lower Caves | Discovered new exit (range 4) 3094 | -7/Lower Caves | Encountered a Warlord checkpoint 3655 | -7/Lower Caves | Entered Factory 3655 | -6/Factory | Evolved 2 slots: Utility x2 3656 | -6/Factory | Identified exit to Lower Caves 3656 | -6/Factory | Identified Heart of Steel 3657 | -6/Factory | Identified exit to Factory 3767 | -6/Factory | Repaired Com. Wheel 3795 | -6/Factory | Repaired Com. Wheel 3866 | -6/Factory | Repaired Hvy. Deuterium Engine 3929 | -6/Factory | Repaired Broken Flak Gun 3944 | -6/Factory | Build established: Mutant 4474 | -6/Factory | Lost 4 parts (2p1u1w) 4489 | -6/Factory | Destroyed 7 combat bots 4669 | -6/Factory | Core integrity fell below 50% 4705 | -6/Factory | Lost 7 parts (2p2n3w) 4906 | -6/Factory | Discovered new exit (range 18) 4936 | -6/Factory | Build established: Scavenger-Mutant 4958 | -6/Factory | Entered Extension 5110 | -6/Extension | Spotted B-75 Beast 5118 | -6/Extension | Spotted B-75 Beast 5124 | -6/Extension | Core integrity fell below 20% 5134 | -6/Extension | Destroyed by B-75 Beast with Magnetic Acceleration Cannon Last Messages --------------- 05080_ Slug penetrates A-15 Conveyor. 05082_ Acquired 10 matter. 05082_ Penetrated by Slug. 05083_ Autogun destroyed. 05086_ Penetrated by Slug. 05086_ Lgt. Angular Momentum Engine destroyed. 05086_ Com. Wheel destroyed. 05088_ Acquired 10 matter. 05095_ KEOMESML%A,OBW9VZHU: 05116_ Com. Wheel destroyed. 05118_ TPT8,GHQGAAMST8LY9YRF 2MVJ#4B 05119_ Mic. Nuclear Core destroyed. 05121_ Critical hit (Meltdown: +330). 05122_ Com. Wheel destroyed. 05124_ Imp. Deuterium Engine destroyed. 05124_ Com. Wheel destroyed. 05126_ Machine disabled. 05129_ Slammed into R-10 Processor. 05131_ Machine disabled. 05131_ Adv. Heat Sink destroyed. Map ----- +----------------------------------------------------+ | ?????????????????????????????????????????????????? | | ?????????????????????????????????????????????????? | | ?????????????????????????????????????????????????? | | ?????????????????????????????????????????????????? | | ?????????????????????????????????????????????????? | | ?????????????????????????????????????????????????? | | ?????????????????????????????????????????????????? | | ?????????????????????????????????????????????????? | | ???????????????????????? ???????????????????????? | | ???????????????????????? ???????????????????????? | | ???????????????????????? ???????????????????????? | | ???????????????????????? ???????????????????????? | | ???????????????????????? ???????????????????????? | | ???????????????????????? ???????????????????????? | | ???????????????????????? ???????????????????????? | | ???????????????????????? ???????????????????????? | | ???????????????????????? #??????????????????????? | | ???????????????????????? #??????????????????????? | | ????????????????????????# #??????????????????????? | | ????????????????????????# #??????????????????????? | | ????????????????????????#R#??????????????????????? | | ????????????????????????# #??????????????????????? | | ????????????????????????# #??????????????????????? | | ????????????????????????#%#??????????????????????? | | ????????????????????????# #???#??#???????????????? | | ??????????????????????###@### ## ### #???????????? | | ###???????????????????#""% " "" ""??????????? | | #???????????????????#% Y " " #?????????? | | #???????????????????#R Y u #?????????? | | #????????????###????# #?????????? | | +######"########"###### #?????????? | | % % ???????? | | BB ???????? | | BB ????????? | | BB ????????? | | u BB ????????? | | ####################### #?????????? | | ??????????????????????# #?????????? | | ??????????????????????# ??????????? | | ??????????????????????# ??????????? | | ??????????????????????# ???????????? | | ??????????????????????######T#"""####????????????? | | ????????????????????????????##???????????????????? | | ?????????????????????????????????????????????????? | | | | | | | | | | | | | +----------------------------------------------------+ Best States ------------- Heat Dissipation 70 Energy Generation 31 Energy Capacity 520 Matter Stores 300 Matter Capacity 300 Sight Range 18 Robot Scan Range 16 Terrain Scan Range 16 Terrain Scan Density 10 Armor Coverage 150 Evasion (%) 55 Target Analysis 5 Item Schematics ----------------- None Robot Schematics ------------------ None Fabricated ------------ Nothing Alien Tech Used ----------------- None Achievements -------------- None Challenges ------------ None Game ------ Seed ActiveRefineryAnalyzer Manual? 0 Play Time 01:15:20 Cumulative 132.0 hours Start 2025.01.01 @ 18:26:36 End 2025.01.01 @ 21:58:06 Sessions 1 Manual Loads 0 Difficulty Rogue Special Mode None Game No. 69 Rogue 59 Adventurer 10 Explorer 0 Win Type - Total 1 Types 0/0/1/0/0/0/0/0/0 Lore% 28 Gallery% 49 Achievement% 41 Wizard Run 0 Options --------- Layout 1 ASCII 0 Keyboard 0 Movement Arrows Keybinds 0 Fullscreen 2 Font 32/SmallcapsGlow Map View 50x35 Zoom Use 0% Tactical HUD 1 Map Filters NONE Filters NONE Steam 0 RUN: 10a96494-5dec-4bed-9b90-1a068840ec72